bitfinex/quotes_BTCUSD_20241123
["timestamp","ask_amount","ask_price","bid_price","bid_amount"]
[1732343374383,0.002,98178.0,98124.0,0.00101857]
[1732343374587,0.002,98178.0,98125.0,0.1297]
[1732343374803,0.002,98178.0,98128.0,0.05060222]
[1732343375015,0.002,98178.0,98133.0,0.05054951]
[1732343375227,0.002,98178.0,98136.0,0.05031761]
[1732343375438,0.002,98178.0,98140.0,0.0473]
[1732343375662,0.002,98178.0,98142.0,0.0473]
[1732343375847,0.002,98178.0,98145.0,0.0473]
[1732343376022,0.002,98178.0,98148.0,0.0473]
[1732343376247,0.002,98178.0,98149.0,0.08341857]
[1732343376409,0.002,98178.0,98150.0,0.0473]
[1732343376613,0.002,98178.0,98153.0,0.0824]
[1732343376811,0.002,98178.0,98155.0,0.1297]
[1732343377011,0.002,98178.0,98158.0,0.0824]
[1732343377215,0.002,98178.0,98160.0,0.1297]
[1732343377419,0.002,98178.0,98163.0,0.1297]
[1732343377627,0.002,98178.0,98165.0,0.1297]
[1732343377853,0.002,98178.0,98161.0,0.15]
[1732343377854,0.002,98178.0,98167.0,0.1297]
[1732343378008,0.002,98178.0,98161.0,0.15]
[1732343378009,0.002,98178.0,98169.0,0.0473]
[1732343378652,0.002,98178.0,98169.0,0.1973]
[1732343388826,0.00101857,98179.0,98169.0,0.1973]
[1732343389473,0.002,98178.0,98169.0,0.1973]
[1732343390145,0.00101857,98179.0,98169.0,0.1973]
[1732343390351,0.002,98178.0,98169.0,0.1973]
[1732343392578,0.1,98180.0,98169.0,0.1973]
[1732343393415,0.00101857,98179.0,98169.0,0.1973]
[1732343393622,0.1,98180.0,98169.0,0.1973]
[1732343394266,0.03818501,98180.0,98169.0,0.1973]
[1732343394865,1e-08,98180.0,98169.0,0.1973]
[1732343395078,0.00101857,98187.0,98169.0,0.1973]
[1732343396443,0.09434167,98188.0,98169.0,0.1973]
[1732343397122,0.002,98191.0,98171.0,0.1234]
[1732343397329,0.002,98190.0,98173.0,0.0453]
[1732343397531,0.002,98194.0,98175.0,0.0453]
[1732343397751,0.002,98194.0,98175.0,0.1953]
[1732343400491,0.002,98186.0,98175.0,0.1953]
[1732343400837,0.002,98191.0,98175.0,0.1953]
[1732343401251,0.002,98189.0,98175.0,0.1953]
[1732343401516,0.002,98193.0,98175.0,0.1953]
[1732343402047,0.09434167,98195.0,98177.0,0.1964]
[1732343402247,0.002,98190.0,98177.0,0.1964]
[1732343404330,0.002,98190.0,98176.0,0.03427331]
[1732343405022,0.14104167,98195.0,98176.0,0.03427331]
[1732343405023,0.002,98193.0,98176.0,0.03427331]
[1732343405896,0.0467,98195.0,98176.0,0.03427331]
[1732343406110,0.002,98194.0,98176.0,0.03427331]
[1732343406545,0.002,98193.0,98176.0,0.03427331]
[1732343407362,0.002,98193.0,98177.0,0.0479]
[1732343407574,0.0481,98200.0,98177.0,0.0479]
[1732343408213,0.0481,98200.0,98145.0,0.0500836]
[1732343408415,0.0501,98200.0,98146.0,0.023]
[1732343408628,0.0481,98200.0,98146.0,0.023]
[1732343409684,0.0501,98200.0,98146.0,0.023]
[1732343409898,0.0501,98200.0,98147.0,0.05070889]
[1732343410111,0.0481,98198.0,98147.0,0.05070889]
[1732343411223,0.0481,98198.0,98152.0,0.039]
[1732343411439,0.0481,98198.0,98154.0,0.039]
[1732343411668,0.0481,98198.0,98161.0,0.1173]
[1732343411845,0.0481,98198.0,98163.0,0.0783]
[1732343412056,0.0481,98198.0,98165.0,0.0783]
[1732343412471,0.0481,98198.0,98165.0,0.2283]
[1732343412705,0.0501,98198.0,98165.0,0.2283]
[1732343414025,0.0807,98191.0,98166.0,0.023]
[1732343414276,0.002,98189.0,98165.0,0.0401766]
[1732343414542,0.0481,98184.0,98165.0,0.0401766]
[1732343414750,0.0481,98182.0,98160.0,0.15]
[1732343414977,0.0481,98181.0,98160.0,0.1909414]
[1732343415415,0.0481,98181.0,98161.0,0.00101856]
[1732343415625,0.002,98179.0,98156.0,0.05088517]
[1732343415848,0.0481,98178.0,98156.0,0.05088517]
[1732343416037,0.0481,98176.0,98147.0,0.05070889]
[1732343416523,0.0481,98176.0,98148.0,0.023]
[1732343416953,0.0481,98176.0,98150.0,0.023]
[1732343417799,0.002,98179.0,98153.0,0.05057764]
[1732343418006,0.002,98179.0,98122.0,0.0008607]
[1732343418007,0.0481,98167.0,98138.0,0.05060045]
[1732343418268,0.0481,98165.0,98138.0,0.05060045]
[1732343418472,0.0481,98163.0,98138.0,0.05060045]
[1732343419298,0.0481,98163.0,98141.0,0.023]
[1732343419511,0.0481,98161.0,98141.0,0.023]
[1732343419740,0.0481,98161.0,98142.0,0.05020123]
[1732343419952,0.0481,98161.0,98143.0,0.023]
[1732343420174,0.0481,98161.0,98142.0,0.05020123]
[1732343420415,0.0481,98161.0,98143.0,0.02401871]
[1732343421094,0.0481,98161.0,98145.0,0.023]
[1732343421322,0.0481,98161.0,98147.0,0.023]
[1732343421553,0.0481,98161.0,98148.0,0.00101871]
[1732343423215,0.0481,98161.0,98149.0,0.05038985]
[1732343423462,0.0481,98161.0,98150.0,0.00101871]
[1732343424444,0.0481,98161.0,98150.0,0.02401871]
[1732343424701,0.0481,98161.0,98151.0,0.05022302]
[1732343424957,0.0481,98161.0,98148.0,0.05020947]
[1732343425213,0.0467,98159.0,98147.0,0.023]
[1732343425440,0.1249,98166.0,98145.0,0.023]
[1732343425693,0.09434167,98169.0,98145.0,0.023]
[1732343425694,0.0782,98165.0,98145.0,0.023]
[1732343425954,0.1249,98161.0,98147.0,0.023]
[1732343426213,0.0467,98157.0,98149.0,0.07338985]
[1732343426477,0.0782,98156.0,98149.0,0.07338985]
[1732343426702,0.0467,98155.0,98149.0,0.07338985]
[1732343427346,0.0467,98155.0,98144.0,0.023]
[1732343427555,0.0467,98155.0,98149.0,0.05038985]
[1732343427765,0.0467,98155.0,98148.0,0.023]
[1732343427978,0.0467,98155.0,98148.0,0.07320947]
[1732343428167,0.0467,98153.0,98148.0,0.07320947]
[1732343428611,0.0467,98153.0,98146.0,0.023]
[1732343428817,0.002,98159.0,98147.0,0.05004649]
[1732343429647,0.002,98158.0,98147.0,0.05004649]
[1732343430289,0.09258649,98167.0,98147.0,0.05004649]
[1732343431572,0.09258649,98163.0,98146.0,0.05098131]
[1732343431825,0.1249,98162.0,98143.0,0.05128305]
[1732343432078,0.0467,98161.0,98143.0,0.05128305]
[1732343432521,0.03646001,98161.0,98143.0,0.05128305]
[1732343433144,0.02666001,98161.0,98143.0,0.05128305]
[1732343433625,0.02666001,98161.0,98148.0,0.05020947]
[1732343433835,0.02666001,98161.0,98148.0,0.05122823]
[1732343434259,0.02666001,98161.0,98148.0,0.05020947]
[1732343434473,0.09258649,98158.0,98147.0,0.0008604]
[1732343435131,0.0782,98157.0,98147.0,0.0008604]
[1732343435850,0.0782,98157.0,98147.0,0.04233148]
[1732343436057,0.0782,98157.0,98147.0,0.0008604]
[1732343436270,0.0467,98156.0,98147.0,0.0008604]
[1732343442865,0.00496,98159.0,98148.0,0.00101879]
[1732343443096,0.00496,98159.0,98148.0,0.00101876]
[1732343444658,0.00496,98159.0,98148.0,0.02401876]
[1732343448588,0.00496,98159.0,98147.0,0.0008604]
[1732343456326,0.00496,98159.0,98142.0,0.05020123]
[1732343457880,0.00496,98159.0,98114.0,0.05058253]
[1732343458450,0.00496,98159.0,98147.0,0.0008603]
[1732343461421,0.00496,98159.0,98148.0,0.00101875]
[1732343463380,0.1268,98158.0,98148.0,0.00101875]
[1732343463583,0.0471,98157.0,98148.0,0.00101875]
[1732343463816,0.00496,98159.0,98148.0,0.00101875]
[1732343465577,0.00496,98159.0,98148.0,0.04260618]
[1732343465783,0.00496,98159.0,98148.0,0.00101875]
[1732343466809,0.1268,98158.0,98147.0,0.04294135]
[1732343470459,0.1268,98158.0,98148.0,0.00101875]
[1732343483993,0.1268,98158.0,98148.0,0.00187905]
[1732343484191,0.147106,98158.0,98148.0,0.00187905]
[1732343484462,0.1488266,98158.0,98148.0,0.00187905]
[1732343484734,0.14430004,98158.0,98148.0,0.00187905]
[1732343484978,0.05007542,98158.0,98148.0,0.00187905]
[1732343485435,0.05007542,98158.0,98148.0,0.0008603]
[1732343487513,0.14266191,98158.0,98148.0,0.0008603]
[1732343487757,0.11461309,98158.0,98148.0,0.0008603]
[1732343487961,0.1289,98157.0,98148.0,0.0008603]
[1732343490372,0.1289,98157.0,98148.0,0.0238603]
[1732343498146,0.1289,98157.0,98143.0,0.023]
[1732343498359,0.1289,98157.0,98142.0,0.05012301]
[1732343500164,0.1289,98157.0,98142.0,0.05114184]
[1732343501560,0.1289,98157.0,98134.0,0.05015074]
[1732343501781,0.1289,98157.0,98135.0,0.02401882]
[1732343502860,0.1289,98157.0,98138.0,0.05008654]
[1732343503070,0.1289,98157.0,98140.0,0.05046914]
[1732343503282,0.1289,98157.0,98141.0,0.00101883]
[1732343503906,0.1289,98157.0,98142.0,0.05095485]
[1732343504949,0.0498,98156.0,98142.0,0.05095485]
[1732343505366,0.0498,98156.0,98139.0,0.05057439]
[1732343505590,0.0498,98156.0,98140.0,0.00101883]
[1732343506006,0.00431602,98156.0,98141.0,0.05026592]
[1732343507307,0.00431602,98156.0,98141.0,0.05112622]
[1732343508224,0.00533488,98156.0,98141.0,0.05112622]
[1732343512274,0.00533488,98156.0,98141.0,0.09243489]
[1732343512475,0.00533488,98156.0,98136.0,0.023]
[1732343512476,0.00533488,98156.0,98135.0,0.05040454]
[1732343512684,0.00533488,98156.0,98134.0,0.05060185]
[1732343513590,0.0806668,98157.0,98134.0,0.05060185]
[1732343514011,0.00101883,98156.0,98134.0,0.05060185]
[1732343514691,0.00101883,98156.0,98134.0,0.20060185]
[1732343516661,0.0498,98155.0,98134.0,0.20060185]
[1732343517129,0.00228827,98157.0,98134.0,0.20060185]
[1732343518848,0.00228827,98157.0,98134.0,0.20146225]
[1732343519060,0.0017208,98156.0,98134.0,0.20146225]
[1732343519730,0.10114217,98158.0,98134.0,0.20146225]
[1732343520161,0.0498,98157.0,98134.0,0.20146225]
[1732343522620,0.0822,98156.0,98134.0,0.20146225]
[1732343524998,0.0822,98156.0,98135.0,0.0468]
[1732343525708,0.0822,98156.0,98136.0,0.05067692]
[1732343528136,0.0822,98156.0,98137.0,0.0468]
[1732343528363,0.04129,98156.0,98137.0,0.0468]
[1732343528582,0.0498,98157.0,98139.0,0.0504432]
[1732343529203,0.0498,98157.0,98139.0,0.2004432]
[1732343529410,0.0498,98157.0,98140.0,0.00101883]
[1732343531473,0.0498,98157.0,98139.0,0.2004432]
[1732343531699,0.10114217,98158.0,98139.0,0.2004432]
[1732343531920,0.10114217,98158.0,98140.0,0.0468]
[1732343532160,0.0017206,98157.0,98140.0,0.0468]
[1732343533675,0.0017206,98157.0,98141.0,0.00101883]
[1732343533878,0.0017206,98157.0,98142.0,0.0468]
[1732343535003,0.10028278,98158.0,98142.0,0.0468]
[1732343537371,0.00769629,98158.0,98144.0,0.0468]
[1732343537596,0.00769629,98158.0,98146.0,0.13]
[1732343537813,0.00769629,98158.0,98149.0,0.0468]
[1732343538031,0.00769629,98158.0,98152.0,0.1968]
[1732343538246,0.00769629,98158.0,98154.0,0.0468]
[1732343538456,0.00769629,98158.0,98156.0,0.13]
[1732343538629,0.00769629,98158.0,98157.0,0.28101861]
[1732343538863,0.00769629,98158.0,98157.0,0.28]
[1732343540844,0.01297418,98179.0,98148.0,0.1235]
[1732343541076,0.01297418,98179.0,98141.0,0.05032533]
[1732343541077,0.07970145,98204.0,98152.0,0.046]
[1732343541263,0.07970145,98204.0,98153.0,0.0775]
[1732343541404,0.07970145,98204.0,98155.0,0.0775]
[1732343541754,0.07970145,98204.0,98161.0,0.046]
[1732343542815,0.07970145,98204.0,98162.0,0.046]
[1732343543456,0.07970145,98204.0,98164.0,0.046]
[1732343543659,0.07970145,98204.0,98165.0,0.046]
[1732343544072,0.0496,98201.0,98165.0,0.046]
[1732343544502,0.0496,98201.0,98167.0,0.046]
[1732343545312,0.0841206,98196.0,98167.0,0.046]
[1732343545675,0.0841206,98196.0,98167.0,0.196]
[1732343546154,0.0841206,98196.0,98168.0,0.046]
[1732343548795,0.0841206,98196.0,98163.0,0.00899907]
[1732343549126,0.1,98180.0,98119.0,0.05084334]
[1732343550062,0.1,98186.0,98125.0,0.1]
[1732343550472,0.1,98186.0,98126.0,0.05034115]
[1732343551098,0.1,98186.0,98127.0,0.023]
[1732343551300,0.1,98186.0,98128.0,0.05056393]
[1732343552029,0.1,98186.0,98130.0,0.046]
[1732343552235,0.0829,98185.0,98135.0,0.0775]
[1732343552505,0.0829,98185.0,98139.0,0.046]
[1732343552677,0.0829,98185.0,98141.0,0.05093425]
[1732343553108,0.0829,98185.0,98153.0,0.023]
[1732343553318,0.0829,98185.0,98154.0,0.046]
[1732343556668,0.1829,98177.0,98154.0,0.046]
[1732343560676,0.07095,98177.0,98154.0,0.046]
[1732343560897,0.02905,98177.0,98155.0,0.00101863]
[1732343561129,0.02905,98179.0,98155.0,0.00101863]
[1732343561340,0.0017206,98185.0,98155.0,0.00101863]
[1732343562117,0.0017206,98185.0,98156.0,0.0833]
[1732343562379,0.0017206,98185.0,98157.0,0.00101863]
[1732343562871,0.04553206,98194.0,98157.0,0.00101863]
[1732343563110,0.04553206,98194.0,98158.0,0.0479]
[1732343563364,0.00172,98203.0,98160.0,0.1312]
[1732343563595,0.0781,98202.0,98163.0,0.0479]
[1732343563822,0.00172,98203.0,98165.0,0.0479]
[1732343564072,0.00614816,98211.0,98168.0,0.0833]
[1732343564320,0.31591162,98213.0,98171.0,0.2812]
[1732343564551,0.31591162,98213.0,98176.0,0.2333]
[1732343564781,0.31591162,98213.0,98178.0,0.0479]
[1732343564999,0.31591162,98213.0,98179.0,0.0010184]
[1732343566385,0.0472,98222.0,98181.0,0.0479]
[1732343566616,0.0472,98222.0,98181.0,0.1979]
[1732343566811,0.0781,98219.0,98181.0,0.1979]
[1732343567255,0.06,98188.0,98181.0,0.1979]
[1732343570919,0.0017202,98203.0,98181.0,0.1979]
[1732343577332,0.0781,98219.0,98181.0,0.1979]
[1732343577333,0.00015393,98218.0,98181.0,0.1979]
[1732343577793,0.00015393,98218.0,98182.0,0.2333]
[1732343578307,0.00015393,98218.0,98183.0,0.0479]
[1732343578963,0.03759031,98219.0,98185.0,0.0479]
[1732343579161,0.03759031,98219.0,98186.0,0.0833]
[1732343579783,0.03759031,98219.0,98186.0,0.15]
[1732343580107,0.03759031,98219.0,98187.0,0.0833]
[1732343581004,0.0017198,98213.0,98187.0,0.0833]
[1732343581992,0.0017198,98213.0,98189.0,0.0823]
[1732343582356,0.0017198,98213.0,98189.0,0.15]
[1732343582592,0.0017198,98213.0,98190.0,0.13061832]
[1732343582788,0.0017198,98213.0,98191.0,0.1296]
[1732343583016,0.0017198,98213.0,98190.0,0.00101832]
[1732343583017,0.0017198,98213.0,98193.0,0.0473]
[1732343583148,0.0017198,98213.0,98194.0,0.15]
[1732343583354,0.0017198,98213.0,98194.0,0.2323]
[1732343586518,0.0017198,98213.0,98183.0,0.04180259]
[1732343586732,0.0017198,98213.0,98196.0,0.15]
[1732343588943,0.07453353,98228.0,98196.0,0.15]
[1732343590286,0.07453353,98228.0,98195.0,0.0275686]
[1732343590463,0.07349817,98228.0,98195.0,0.0275686]
[1732343591484,0.01083973,98228.0,98195.0,0.0275686]
[1732343591687,0.02937302,98229.0,98197.0,0.0823]
[1732343591925,0.02937302,98229.0,98200.0,0.1296]
[1732343592117,0.02937302,98229.0,98181.0,0.0008599]
[1732343592118,0.02937302,98229.0,98202.0,0.0823]
[1732343592324,0.5475,98236.0,98203.0,0.1973]
[1732343592522,0.51612291,98236.0,98206.0,0.0823]
[1732343592756,0.51612291,98236.0,98203.0,0.0473]
[1732343592757,0.51212291,98246.0,98209.0,0.0823]
[1732343593570,0.0017196,98228.0,98209.0,0.0823]
[1732343595753,0.0017196,98228.0,98211.0,0.2323]
[1732343595969,0.0017196,98228.0,98211.0,0.0823]
[1732343596172,0.0017196,98228.0,98212.0,0.1296]
[1732343596383,0.0017196,98228.0,98213.0,0.1296]
[1732343596589,0.0017196,98228.0,98214.0,0.0823]
[1732343597005,0.0017196,98228.0,98214.0,0.2323]
[1732343597212,0.0017196,98228.0,98215.0,0.0823]
[1732343597859,0.0017196,98228.0,98217.0,0.2323]
[1732343598084,0.0017196,98228.0,98218.0,0.0823]
[1732343598735,0.0017196,98228.0,98218.0,0.2323]
[1732343598975,0.0017196,98228.0,98219.0,0.0823]
[1732343599381,0.48072451,98248.0,98220.0,0.0473]
[1732343599632,0.44935323,98248.0,98187.0,0.0823]
[1732343599861,0.44935323,98248.0,98221.0,0.10253349]
[1732343600301,0.01651819,98252.0,98224.0,0.0823]
[1732343600505,0.01651819,98252.0,98226.0,0.0823]
[1732343601273,0.01651819,98252.0,98227.0,0.0753]
[1732343601874,0.01651819,98252.0,98226.0,0.0753]
[1732343602078,0.01651819,98252.0,98228.0,0.0753]
[1732343602334,0.0668,98262.0,98229.0,0.05071794]
[1732343602576,0.0668,98262.0,98230.0,0.0753]
[1732343603459,0.0668,98262.0,98230.0,0.2253]
[1732343604940,0.0668,98262.0,98231.0,0.0833]
[1732343605361,0.0464,98259.0,98231.0,0.0833]
[1732343605770,0.0017192,98252.0,98231.0,0.0833]
[1732343607980,0.0017192,98252.0,98232.0,0.1987]
[1732343608243,0.0017192,98252.0,98233.0,0.2333]
[1732343608420,0.0017192,98252.0,98234.0,0.2333]
[1732343608634,0.0017192,98252.0,98236.0,0.0833]
[1732343609257,0.0017192,98252.0,98236.0,0.2333]
[1732343609979,0.0017192,98252.0,98237.0,0.17023349]
[1732343610180,0.0017192,98252.0,98238.0,0.0833]
[1732343610383,0.0017192,98252.0,98239.0,0.15]
[1732343610790,0.0017192,98252.0,98240.0,0.132]
[1732343610993,0.0017192,98252.0,98241.0,0.0487]
[1732343611205,0.0017192,98252.0,98242.0,0.0833]
[1732343611618,0.0017192,98252.0,98243.0,0.00101782]
[1732343611762,0.0017192,98252.0,98243.0,0.08431782]
[1732343612596,0.0017192,98252.0,98243.0,0.0833]
[1732343615236,0.0017192,98252.0,98244.0,0.0061409]
[1732343620152,0.0011606,98257.0,98244.0,0.0061409]
[1732343620359,0.0011606,98257.0,98244.0,0.00715867]
[1732343620568,0.0668,98277.0,98246.0,0.0487]
[1732343620771,0.0668,98277.0,98248.0,0.0484]
[1732343622155,0.0668,98277.0,98249.0,0.0818]
[1732343622624,0.0668,98277.0,98250.0,0.0484]
[1732343622801,0.1,98293.0,98251.0,0.0818]
[1732343623003,0.0668,98283.0,98252.0,0.0484]
[1732343623161,0.0668,98283.0,98252.0,0.1984]
[1732343623560,0.0469,98282.0,98253.0,0.2318]
[1732343624652,0.0469,98282.0,98254.0,0.1976]
[1732343624881,0.0469,98282.0,98253.0,0.02403631]
[1732343625308,0.0469,98282.0,98253.0,0.05260652]
[1732343627847,0.0469,98282.0,98254.0,0.0476]
[1732343629334,0.04862,98282.0,98254.0,0.0476]
[1732343637474,0.04862,98282.0,98221.0,0.040514]
[1732343637965,0.03587532,98282.0,98237.0,0.0476]
[1732343638165,0.03587532,98282.0,98239.0,0.0476]
[1732343638365,0.03587532,98282.0,98240.0,0.04861766]
[1732343639218,0.03587532,98282.0,98241.0,0.0476]
[1732343639427,0.03587532,98282.0,98236.0,0.04246697]
[1732343639428,0.03587532,98282.0,98243.0,0.0476]
[1732343639557,0.03587532,98282.0,98236.0,0.04246697]
[1732343639558,0.03587532,98282.0,98244.0,0.00101763]
[1732343639763,0.03587532,98282.0,98238.0,0.0476]
[1732343639974,0.03587532,98282.0,98240.0,0.0476]
[1732343640199,0.03587532,98282.0,98241.0,0.04861763]
[1732343640519,0.03587532,98282.0,98244.0,0.0476]
[1732343640720,0.03587532,98282.0,98249.0,0.0829]
[1732343640922,0.03587532,98282.0,98251.0,0.0829]
[1732343641114,0.03587532,98282.0,98253.0,0.0829]
[1732343641341,0.03587532,98282.0,98254.0,0.00101763]
[1732343643790,0.03587532,98282.0,98251.0,0.01292151]
[1732343643791,0.00101763,98281.0,98251.0,0.01292151]
[1732343643990,0.00101763,98281.0,98252.0,0.00101761]
[1732343644225,0.1,98270.0,98212.0,0.05027432]
[1732343644442,0.07618312,98275.0,98212.0,0.1]
[1732343644649,0.00127202,98274.0,98214.0,0.05036345]
[1732343644855,0.00127203,98275.0,98215.0,0.046]
[1732343645083,0.00127203,98275.0,98217.0,0.046]
[1732343645770,0.00127203,98275.0,98219.0,0.046]
[1732343646827,0.0495,98274.0,98221.0,0.05091146]
[1732343647036,0.00076323,98273.0,98222.0,0.0829]
[1732343647238,0.00076323,98273.0,98223.0,0.05039067]
[1732343647446,0.00076323,98273.0,98224.0,0.2329]
[1732343647681,0.00076323,98273.0,98225.0,0.0829]
[1732343647931,0.0495,98274.0,98227.0,0.0829]
[1732343648141,0.0495,98274.0,98229.0,0.0829]
[1732343648349,0.00172,98282.0,98228.0,0.00101753]
[1732343648350,0.0495,98281.0,98230.0,0.08391753]
[1732343648556,0.0495,98281.0,98234.0,0.05012962]
[1732343648764,0.0495,98281.0,98238.0,0.0829]
[1732343648961,0.0495,98281.0,98239.0,0.0839175]
[1732343649212,0.0495,98281.0,98240.0,0.0829]
[1732343649385,0.0495,98281.0,98241.0,0.0839175]
[1732343649546,0.0495,98281.0,98242.0,0.0829]
[1732343649752,0.0495,98281.0,98245.0,0.046]
[1732343649965,0.0495,98281.0,98250.0,0.15]
[1732343650190,0.0495,98281.0,98255.0,0.15]
[1732343650424,0.0495,98281.0,98256.0,0.0839175]
[1732343650849,0.13608362,98360.0,98256.0,0.0839175]
[1732343651061,0.00076323,98301.0,98257.0,0.046]
[1732343651301,0.00076323,98301.0,98259.0,0.1289]
[1732343651785,0.00076323,98301.0,98260.0,0.15]
[1732343652227,0.00076323,98301.0,98263.0,0.15]
[1732343652447,0.00076323,98301.0,98264.0,0.00101746]
[1732343652874,0.00076323,98301.0,98263.0,0.15]
[1732343653506,0.00076323,98301.0,98232.0,0.20097128]
[1732343653734,0.0799,98319.0,98269.0,0.00392973]
[1732343653941,0.0799,98317.0,98270.0,0.00392973]
[1732343654169,0.0799,98315.0,98270.0,0.00392973]
[1732343654347,0.023,98323.0,98270.0,0.00392973]
[1732343654556,0.0799,98321.0,98270.0,0.00392973]
[1732343654749,0.0799,98319.0,98270.0,0.00392973]
[1732343655154,0.07926651,98319.0,98271.0,0.00101746]
[1732343655810,0.0017196,98301.0,98271.0,0.00101746]
[1732343657636,0.0495,98300.0,98271.0,0.00101746]
[1732343658050,0.0799,98299.0,98271.0,0.00101746]
[1732343658250,0.0495,98298.0,98272.0,0.1289]
[1732343658475,0.04150384,98298.0,98273.0,0.00101746]
[1732343658859,0.03218384,98298.0,98273.0,0.00101746]
[1732343659261,0.03218384,98298.0,98273.0,0.15101746]
[1732343662539,0.03218384,98298.0,98275.0,0.1273]
[1732343662778,0.03218384,98298.0,98276.0,0.15]
[1732343663018,0.0017196,98301.0,98277.0,0.0487]
[1732343663482,0.0017196,98301.0,98278.0,0.0786]
[1732343663710,0.0017196,98301.0,98279.0,0.0487]
[1732343663918,0.0017196,98301.0,98279.0,0.1987]
[1732343666643,0.0017196,98301.0,98280.0,0.00334112]
[1732343670325,0.0017196,98301.0,98281.0,0.1273]
[1732343670531,0.0017196,98301.0,98282.0,0.15]
[1732343675679,0.0017196,98301.0,98283.0,0.00101731]
[1732343677539,0.0017196,98301.0,98284.0,0.1273]
[1732343677744,0.0017196,98301.0,98285.0,0.15101731]
[1732343680422,0.0017196,98301.0,98285.0,0.15]
[1732343681000,0.045,98300.0,98285.0,0.15]
[1732343684241,0.045,98300.0,98276.0,0.00392973]
[1732343685298,0.04478916,98300.0,98276.0,0.00392973]
[1732343685514,0.04478916,98300.0,98277.0,0.0477]
[1732343685708,0.0783,98302.0,98277.0,0.0477]
[1732343685965,0.0671,98302.0,98278.0,0.0789]
[1732343686431,0.0671,98302.0,98278.0,0.2289]
[1732343686646,0.0671,98302.0,98278.0,0.15]
[1732343686853,0.0671,98302.0,98276.0,0.04398179]
[1732343688351,0.0671,98302.0,98276.0,0.04005206]
[1732343688567,0.0671,98302.0,98276.0,0.04398179]
[1732343688771,0.045,98301.0,98276.0,0.00392973]
[1732343688971,0.001719,98319.0,98276.0,0.00392973]
[1732343688972,0.045,98299.0,98276.0,0.00392973]
[1732343689177,0.0783,98298.0,98276.0,0.00392973]
[1732343689400,0.06058481,98298.0,98275.0,0.00392973]
[1732343689977,0.06058481,98298.0,98276.0,0.02489721]
[1732343690746,0.04305481,98298.0,98276.0,0.02489721]
[1732343690942,0.04305481,98298.0,98276.0,0.02591464]
[1732343691655,0.03315482,98298.0,98277.0,0.0477]
[1732343691823,0.00989999,98298.0,98277.0,0.06229592]
[1732343692182,0.0017192,98301.0,98277.0,0.06229592]
[1732343692381,0.045,98300.0,98277.0,0.06229592]
[1732343692819,0.045,98300.0,98277.0,0.21229592]
[1732343694158,0.03510001,98300.0,98277.0,0.21229592]
[1732343695005,0.03510001,98300.0,98277.0,0.1977]
[1732343695229,0.0783,98299.0,98277.0,0.1977]
[1732343696863,0.06840001,98299.0,98277.0,0.1977]
[1732343697120,0.05860001,98299.0,98277.0,0.1977]
[1732343697543,0.04870002,98299.0,98277.0,0.1977]
[1732343697764,0.04870002,98299.0,98246.0,0.05093341]
[1732343697999,0.03890002,98299.0,98242.0,0.0768]
[1732343698228,0.03510001,98300.0,98248.0,0.0768]
[1732343698533,0.02070001,98300.0,98251.0,0.0459]
[1732343698760,0.02070001,98300.0,98254.0,0.0768]
[1732343698984,0.02070001,98300.0,98252.0,0.05144862]
[1732343698985,0.02070001,98300.0,98256.0,0.0768]
[1732343699215,0.02070001,98300.0,98252.0,0.05043124]
[1732343699216,0.02070001,98300.0,98259.0,0.0768]
[1732343699443,0.001719,98319.0,98262.0,0.0459]
[1732343699681,0.00014722,98326.0,98265.0,0.023]
[1732343699926,0.00014722,98326.0,98267.0,0.1227]
[1732343700175,0.00014722,98326.0,98245.0,0.15]
[1732343700176,0.102,98302.0,98246.0,0.05043156]
[1732343700398,0.002,98302.0,98247.0,0.00101731]
[1732343700622,0.102,98302.0,98247.0,0.00101731]
[1732343701337,0.0498,98307.0,98247.0,0.00101731]
[1732343701338,0.08514544,98306.0,98247.0,0.00101731]
[1732343701571,0.08514544,98302.0,98248.0,0.05015022]
[1732343701812,0.08514544,98302.0,98250.0,0.05013382]
[1732343702032,0.08514544,98302.0,98251.0,0.00101731]
[1732343702986,0.07617466,98302.0,98252.0,0.05074368]
[1732343703213,0.07445546,98304.0,98254.0,0.05024718]
[1732343703436,0.0429529,98306.0,98266.0,0.1226]
[1732343703657,0.0429529,98306.0,98270.0,0.1226]
[1732343703862,0.0429529,98306.0,98271.0,0.15101726]
[1732343704070,0.0429529,98306.0,98277.0,0.0453]
[1732343704276,0.0498,98307.0,98278.0,0.04851726]
[1732343704501,0.0429529,98306.0,98278.0,0.04851726]
[1732343704727,0.04397021,98306.0,98278.0,0.04851726]
[1732343704949,0.04397021,98306.0,98279.0,0.02489721]
[1732343705150,0.04397021,98306.0,98280.0,0.0475]
[1732343706438,0.04397021,98306.0,98281.0,0.00101726]
[1732343707446,0.04397021,98306.0,98280.0,0.0475]
[1732343707646,0.04397021,98306.0,98281.0,0.00101727]
[1732343708299,0.04138659,98306.0,98281.0,0.00101727]
[1732343710529,0.01538659,98306.0,98282.0,0.1244]
[1732343710724,0.01538659,98306.0,98283.0,0.15101727]
[1732343710950,0.02571275,98307.0,98283.0,0.15101727]
[1732343714069,0.02743195,98307.0,98283.0,0.15101727]
[1732343714743,0.00214264,98307.0,98283.0,0.00101727]
[1732343714895,0.00214264,98307.0,98284.0,0.0475]
[1732343715518,0.082,98308.0,98285.0,0.00101727]
[1732343716755,0.082,98308.0,98286.0,0.0494]
[1732343717635,0.082,98308.0,98277.0,0.0494]
[1732343717857,0.082,98308.0,98234.0,0.1]
[1732343717858,0.082,98308.0,98265.0,0.0494]
[1732343718064,0.082,98308.0,98265.0,0.09957691]
[1732343718594,0.0461,98307.0,98265.0,0.09957691]
[1732343718793,0.0766,98304.0,98265.0,0.09957691]
[1732343718996,0.0766,98302.0,98265.0,0.09957691]
[1732343719195,0.0766,98300.0,98265.0,0.09957691]
[1732343719399,0.0461,98297.0,98266.0,0.15]
[1732343719590,0.0766,98296.0,98266.0,0.15]
[1732343720633,0.0766,98296.0,98265.0,0.09957691]